fUST/lending_fUST_20240601
["ID","MTS","AMOUNT","RATE_DAILY","PERIOD"]
[328333109,1717176638614,-617.62109736,0.00024851,2]
[328333111,1717176638626,-1491.02654185,0.00024851,2]
[328333113,1717176638636,-4882.15,0.00024867,3]
[328333115,1717176638645,-1587.49293379,0.00024867,3]
[328333117,1717176638658,-1983.25107903,0.00024867,3]
[328333120,1717176638669,-841.90899467,0.00024867,3]
[328333122,1717176638681,-1098.35558405,0.00024867,3]
[328333124,1717176638692,-1000.54145189,0.00024867,3]
[328333126,1717176638705,-319.49995657,0.00024867,3]
[328333128,1717176638714,-4080.49543463,0.00024875,2]
[328333133,1717176638743,-10438.43058167,0.00024875,2]
[328333135,1717176638752,-14408.72108995,0.00024876,2]
[328333137,1717176638762,-239.00629442,0.00024876,2]
[328333139,1717176638771,-393.69982104,0.00024876,2]
[328333141,1717176638781,-157.38741807,0.00024876,2]
[328333143,1717176638791,-155.3256148,0.00024876,2]
[328333145,1717176638800,-410.496682,0.00024876,2]
[328333147,1717176638810,-188.25796714,0.00024876,2]
[328333149,1717176638819,-174.51014455,0.00024876,4]
[328333151,1717176638829,-500.0,0.00024876,2]
[328333153,1717176638838,-258.48928568,0.00024876,2]
[328333155,1717176638847,-500.0,0.00024876,2]
[328333157,1717176638858,-260.48170104,0.00024876,2]
[328333159,1717176638868,-500.0,0.00024876,2]
[328333161,1717176638877,-188.42717124,0.00024876,2]
[328333163,1717176638887,-500.0,0.00024876,2]
[328333165,1717176638896,-255.94975755,0.00024876,2]
[328333167,1717176638906,-500.0,0.00024876,2]
[328333169,1717176638914,-500.0,0.00024876,2]
[328333171,1717176638924,-500.0,0.00024876,2]
[328333173,1717176638934,-500.0,0.00024876,2]
[328333175,1717176638943,-500.0,0.00024876,2]
[328333177,1717176638952,-500.0,0.00024876,2]
[328333179,1717176638962,-500.0,0.00024876,2]
[328333181,1717176638971,-500.0,0.00024876,2]
[328333183,1717176638982,-500.0,0.00024876,2]
[328333185,1717176638992,-500.0,0.00024876,2]
[328333187,1717176639002,-500.0,0.00024876,2]
[328333189,1717176639011,-500.0,0.00024876,2]
[328333190,1717176639024,-500.0,0.00024876,2]
[328333192,1717176639034,-500.0,0.00024876,2]
[328333194,1717176639044,-500.0,0.00024876,2]
[328333197,1717176639055,-500.0,0.00024876,2]
[328333198,1717176639065,-500.0,0.00024876,2]
[328333200,1717176639075,-500.0,0.00024876,2]
[328333202,1717176639086,-500.0,0.00024876,2]
[328333204,1717176639098,-500.0,0.00024876,2]
[328333206,1717176639108,-611.9493624,0.00024876,2]
[328333208,1717176639118,-500.0,0.00024876,2]
[328333210,1717176639128,-500.0,0.00024876,2]
[328333212,1717176639138,-500.0,0.00024876,2]
[328333214,1717176639148,-400.0,0.00024876,2]
[328333216,1717176639161,-500.0,0.00024876,2]
[328333218,1717176639171,-17369.51180266,0.00024877,2]
[328333220,1717176639181,-500.0,0.00024877,2]
[328333222,1717176639191,-500.0,0.00024877,2]
[328333224,1717176639201,-500.0,0.00024877,2]
[328333226,1717176639211,-500.0,0.00024877,2]
[328333228,1717176639221,-500.0,0.00024877,2]
[328333230,1717176639231,-37022.91070898,0.00024878,2]
[328333232,1717176639244,-41845.25042819,0.00024878,2]
[328333242,1717176639256,-1649.16941498,0.00024878,2]
[328333250,1717176642732,-35173.6012539,0.00024878,2]
[328333251,1717176642744,-1347.05889993,0.00024878,2]
[328333278,1717176685569,524.9416942,9.999e-05,2]
[328333287,1717176831603,160.0,0.00030932,33]
[328333289,1717176964182,6326.0,0.000275,30]
[328333294,1717177341526,151.0,0.0003093,34]
[328333421,1717177838735,-292.07469675,0.00018749,2]
[328333422,1717177838746,-57.21030325,0.00023327,2]
[328333423,1717177838758,-116.08690775,0.00023327,2]
[328333424,1717177838768,-162.215147,0.00023454,2]
[328333425,1717177838777,-1569.34259709,0.000245,2]
[328333426,1717177838789,-8430.65740291,0.000245,2]
[328333427,1717177838799,-151.0,0.00024687,5]
[328333428,1717177838808,-1000.0,0.000248,2]
[328333429,1717177838818,-728.92862414,0.00024878,2]
[328333430,1717177838827,-151.0,0.00024878,7]
[328333431,1717177838837,-151.0,0.00024878,7]
[328333432,1717177838846,-457.8433076,0.000249,2]
[328333433,1717177838856,-363.0,0.00024932,2]
[328333434,1717177838865,-4026.87193045,0.00024973,2]
[328333435,1717177838875,-2109.94083119,0.00024973,2]
[328333436,1717177838884,-2000.0,0.00024974,2]
[328333437,1717177838893,-2000.0,0.00024982,2]
[328333438,1717177838904,-2949.79,0.0002499,3]
[328333439,1717177838913,-4650.8973669,0.0002499,3]
[328333440,1717177838925,-550.0126331,0.0002499,3]
[328333441,1717177838934,-456.22424689,0.00024991,2]
[328333442,1717177838948,-1000.88640001,0.00024991,2]
[328333452,1717177842562,-761.75049726,0.000244,2]
[328333453,1717177842573,-542.8893531,0.00024991,2]
[328333454,1717177842584,-195.04603983,0.00024996,2]
[328333455,1717177842595,-156.39757874,0.00024996,2]
[328333456,1717177842606,-175.93993914,0.00024996,2]
[328333457,1717177842616,-414.09342231,0.00024996,2]
[328333458,1717177842626,-1980.05193058,0.00024998,2]
[328333459,1717177842635,-1811.83906857,0.00024998,2]
[328333466,1717177843846,-88.47886206,0.00024998,2]
[328333468,1717177843856,-2117.39226672,0.00024998,2]
[328333469,1717177843866,-921.85323911,0.00024998,2]
[328333471,1717177843875,-551.40633265,0.00024998,2]
[328333472,1717177843884,-17675.15362781,0.00024999,2]
[328333473,1717177844036,-4334.09,0.0002499,3]
[328333474,1717177844046,-2905.36625639,0.00024999,2]
[328333475,1717177844055,-295.04021624,0.00024999,2]
[328333476,1717177844065,-500.0,0.00024999,2]
[328333478,1717177844075,-453.58480872,0.00024999,2]
[328333479,1717177844084,-500.0,0.00024999,2]
[328333480,1717177844094,-500.0,0.00024999,2]
[328333481,1717177844104,-500.0,0.00024999,2]
[328333482,1717177844114,-500.0,0.00024999,2]
[328333483,1717177844124,-500.0,0.00024999,2]
[328333484,1717177844133,-500.0,0.00024999,2]
[328333485,1717177844143,-500.0,0.00024999,2]
[328333486,1717177844152,-500.0,0.00024999,2]
[328333487,1717177844162,-500.0,0.00024999,2]
[328333488,1717177844172,-500.0,0.00024999,2]
[328333489,1717177844183,-500.0,0.00024999,2]
[328333490,1717177844192,-583.42,0.00024999,2]
[328333491,1717177844201,-401.51088538,0.00025,2]
[328333492,1717177844211,-160.0,0.00025,2]
[328333493,1717177844343,-155.83019632,0.00025,2]
[328333494,1717177844354,-7165.69246178,0.00025,2]
[328333495,1717177844367,-2649.2478,0.00025,2]
[328333496,1717177844378,-1614.24210194,0.00025,2]
[328333503,1717177848351,-4353.08557328,0.00025,2]
[328333504,1717177848362,-279.75,0.00025,2]
[328333505,1717177848474,-5651.5298063,0.00025,2]
[328333507,1717177848483,-157.63621116,0.00025,2]
[328333508,1717177848495,-1596.05918439,0.00025,2]
[328333509,1717177848504,-1021.57470321,0.00025,2]
[328333510,1717177848513,-22000.0,0.00025,4]
[328333511,1717177848523,-1947.58660998,0.00025,2]
[328334265,1717178369823,187.10514674,9.999e-05,2]
[328334270,1717178416428,2092.66358583,9.999e-05,2]
[328334277,1717178432326,2092.66358583,9.999e-05,2]
[328334279,1717178452491,2091.11897466,9.999e-05,2]
[328334333,1717178807060,962.66671025,9.999e-05,2]
[328334337,1717178988997,187.10514674,9.999e-05,2]
[328334361,1717179031961,-441.1171266,0.0001786,2]
[328334363,1717179031970,-9575.16966712,0.000179,2]
[328334364,1717179031980,-6073.0733073,0.00017901,2]
[328334366,1717179031990,-717.8620449,0.00018647,2]
[328334368,1717179032000,-59491.78285955,0.00018746,2]
[328334370,1717179032010,-1137.98739382,0.00018748,2]
[328334372,1717179032019,-187.10514674,0.00018893,2]
[328334374,1717179032029,-19280.16218244,0.00018894,2]
[328334375,1717179032038,-584.3671077,0.000189,2]
[328334376,1717179032048,-162.215147,0.00019315,2]
[328334377,1717179032057,-248.590097,0.00019789,2]
[328334378,1717179032067,-279.93786873,0.00021275,2]
[328334379,1717179032077,-2117.39226672,0.00021495,2]
[328334380,1717179032089,-3000.0,0.000215,2]
[328334381,1717179032102,-500.0,0.00021509,2]
[328334382,1717179032114,-500.0,0.00021509,2]
[328334383,1717179032124,-336.07544262,0.00021509,2]
[328334384,1717179032135,-3000.0,0.0002151,2]
[328334385,1717179032144,-3000.0,0.0002152,2]
[328334386,1717179032154,-3000.0,0.0002153,2]
[328334387,1717179032163,-3499.320381,0.0002154,2]
[328334388,1717179032173,-500.0,0.00022,2]
[328334389,1717179032183,-500.0,0.00022,2]
[328334390,1717179032193,-170.0,0.00022,2]
[328334391,1717179032202,-6994.09257,0.00022645,2]
[328334392,1717179032212,-250.0,0.00022913,2]
[328334393,1717179032221,-847.85151625,0.00023324,2]
[328334394,1717179032233,-922.4720001,0.00023745,2]
[328334395,1717179032242,-584.3671077,0.000239,2]
[328334396,1717179032251,-761.75049726,0.000244,2]
[328334397,1717179032260,-4229.78307947,0.00024734,2]
[328334398,1717179032269,-713.43422376,0.000249,2]
[328334399,1717179032278,-317.0,0.00024932,2]
[328334400,1717179032385,-925.7533166,0.0002497,2]
[328334401,1717179032398,-1193.91921166,0.0002497,2]
[328334402,1717179032407,-1902.50814581,0.00024996,2]
[328334403,1717179032417,-405.17264253,0.00024997,2]
[328334423,1717179037892,-2508.15,0.0002499,3]
[328334424,1717179037902,-1488.73238217,0.00024997,2]
[328334425,1717179037912,-9152.48463408,0.00024997,2]
[328334426,1717179037921,-156.68308505,0.00024997,2]
[328334428,1717179038043,-1153.28512896,0.00024997,2]
[328334430,1717179038054,-1323.56046784,0.00024997,2]
[328334432,1717179038066,-555.4800006,0.00024997,2]
[328334435,1717179038078,-304.38797265,0.00024997,2]
[328334465,1717179041452,-192.33,0.0002499,3]
[328334467,1717179041462,-6477.29087088,0.00024997,2]
[328334502,1717179041658,-1931.12732167,0.00024997,2]
[328334505,1717179041774,-283.74809926,0.00024997,2]
[328334507,1717179041784,-2088.14101823,0.00024997,2]
[328334509,1717179041794,-3161.03772456,0.00024997,2]
[328334511,1717179041803,-1062.40551866,0.00024997,2]
[328334514,1717179041818,-1314.70983392,0.00024998,2]
[328334515,1717179041828,-2033.20251904,0.00024998,2]
[328334517,1717179041838,-281.00523214,0.00024998,2]
[328334520,1717179041847,-302.71490703,0.00024998,2]
[328334522,1717179041859,-720.99508433,0.00024998,2]
[328334524,1717179041870,-159.22742912,0.00024998,2]
[328334525,1717179041880,-316.86475702,0.00024998,2]
[328334527,1717179041893,-156.63274877,0.00024998,2]
[328334530,1717179041903,-456.0641796,0.00024998,2]
[328334531,1717179041912,-164.28466186,0.00024999,2]
[328334533,1717179041921,-2000.0,0.00025,2]
[328334535,1717179041931,-1030.92290784,0.00025,2]
[328334536,1717179041941,-16256.20396656,0.00025,2]
[328334554,1717179043111,-451.51601229,0.00025,2]
[328334555,1717179043123,-545.89534636,0.00025,2]
[328334556,1717179043135,-1431.03372119,0.00025,2]
[328334557,1717179043331,-31023.80405591,0.00025,2]
[328334570,1717179060459,8387.99001095,9.999e-05,2]
[328334571,1717179136928,299.89191308,9.999e-05,2]
[328334572,1717179152991,299.57675087,9.999e-05,2]
[328334580,1717179244871,151.0,0.00022677,30]
[328334581,1717179244944,151.0,0.00022223,120]
[328334582,1717179368564,292.14570031,9.999e-05,2]
[328334583,1717179519177,2637.26565627,7.92e-05,2]
[328334585,1717179535091,187.10514674,9.999e-05,2]
[328334587,1717179906493,181.73931373,9.999e-05,2]
[328334591,1717179948759,529.43889661,9.999e-05,2]
[328334592,1717180001107,187.10514674,9.999e-05,2]
[328334593,1717180070981,2312.7403899,0.00013956,2]
[328334692,1717180238205,-1009.64634205,0.00014427,2]
[328334701,1717180238217,-1088.16567359,0.00014427,2]
[328334702,1717180238326,-657.8592243,0.00014427,2]
[328334708,1717180241833,-7770.49557466,0.00014427,2]
[328334710,1717180241842,-187.10514674,0.00014427,2]
[328334712,1717180241852,-781.18684345,0.00014428,2]
[328334723,1717180241951,-13718.04469494,0.00014428,2]
[328334732,1717180241965,-4780.93064405,0.00014428,2]
[328334733,1717180242078,-2109.94083119,0.00014429,2]
[328334734,1717180242088,-529.09876223,0.00014431,2]
[328334735,1717180242096,-3360.41214706,0.00014431,2]
[328334736,1717180242111,-6317.10028954,0.00014431,2]
[328334737,1717180242120,-143.39196602,0.00014431,2]
[328334738,1717180242134,-1727.62482973,0.00014431,2]
[328334739,1717180242144,-181.62501659,0.00014432,2]
[328334740,1717180242154,-394.3509307,0.00014434,2]
[328334741,1717180242163,-407.98769728,0.00014434,2]
[328334742,1717180242177,-2592.01230272,0.00014434,2]
[328334743,1717180242186,-2638.85222435,0.00014999,2]
[328334744,1717180242196,-641.16884479,0.00015,2]
[328334745,1717180242215,-457.81358925,0.00015,2]
[328334746,1717180242225,-291.94973474,0.00015253,2]
[328334747,1717180242234,-4558.8945666,0.00015617,2]
[328334748,1717180242245,-1346.39462612,0.00016048,2]
[328334749,1717180242259,-3653.60537388,0.00016048,2]
[328334750,1717180242268,-250.0,0.00017629,2]
[328334751,1717180242277,-9824.95075359,0.00017667,2]
[328334752,1717180242318,-9803.88937911,0.00017667,2]
[328334753,1717180242327,-2033.20251904,0.00017757,2]
[328334754,1717180242337,-189.90586124,0.0001776,2]
[328334755,1717180242346,-1034.68447379,0.00018,2]
[328334756,1717180242355,-203.78976094,0.00018,2]
[328334757,1717180242364,-1493.95159623,0.000189,2]
[328334758,1717180242374,-231.13404386,0.00020337,2]
[328334759,1717180242383,-1980.05193058,0.00020338,2]
[328334760,1717180242393,-551.40633265,0.00020338,2]
[328334761,1717180242402,-758.57976486,0.00020339,2]
[328334762,1717180242412,-224.83709056,0.00022223,2]
[328334763,1717180242421,-1340.69501905,0.00022869,2]
[328334764,1717180242430,-958.1532391,0.00022869,2]
[328334765,1717180242439,-309.70578646,0.0002287,2]
[328334766,1717180242448,-1498.63618319,0.0002287,2]
[328334767,1717180242458,-500.0,0.00022871,2]
[328334768,1717180242467,-503.87485965,0.00022871,2]
[328334769,1717180242476,-643.1126849,0.00022871,2]
[328334770,1717180242485,-500.0,0.00022871,2]
[328334771,1717180242494,-482.81659666,0.00022871,2]
[328334772,1717180242503,-500.0,0.00022871,2]
[328334773,1717180242513,-500.0,0.00022871,2]
[328334774,1717180242522,-500.0,0.00022871,2]
[328334775,1717180242531,-241.79307933,0.00022871,2]
[328334776,1717180242540,-500.0,0.00022871,2]
[328334777,1717180242550,-589.02252061,0.00022871,2]
[328334778,1717180242560,-535.65466316,0.00022871,2]
[328334779,1717180242571,-500.0,0.00022871,2]
[328334780,1717180242582,-500.0,0.00022871,2]
[328334781,1717180242591,-500.0,0.00022871,2]
[328334782,1717180242601,-500.0,0.00022871,2]
[328334783,1717180242610,-500.0,0.00022871,2]
[328334784,1717180242620,-500.0,0.00022871,2]
[328334785,1717180242629,-500.0,0.00022871,2]
[328334786,1717180242639,-500.0,0.00022871,2]
[328334787,1717180242650,-500.0,0.00022871,2]
[328334788,1717180242661,-500.0,0.00022871,2]
[328334789,1717180242670,-500.0,0.00022871,2]
[328334790,1717180242680,-500.0,0.00022871,2]
[328334792,1717180242689,-641.01126424,0.00022871,2]
[328334793,1717180242699,-453.221048,0.00022871,2]
[328334794,1717180242708,-456.0641796,0.00022872,2]
[328334795,1717180242718,-4886.78951315,0.00022872,2]
[328334796,1717180242727,-1902.50814581,0.00022872,2]
[328334797,1717180242737,-836.65686665,0.00022873,2]
[328334798,1717180242746,-151.00453014,0.00023219,7]
[328334799,1717180242755,-151.00453014,0.00023693,4]
[328334800,1717180242765,-523.95127729,0.00023748,2]
[328334801,1717180242774,-1493.95159623,0.000239,2]
[328334802,1717180242783,-151.00453014,0.00024177,2]
[328334803,1717180242793,-761.75049726,0.000244,2]
[328334804,1717180242802,-4130.93249073,0.000245,2]
[328334817,1717180243425,-7303.62158589,0.000245,2]
[328334818,1717180243438,-2515.70115795,0.000245,2]
[328334825,1717180312639,155.01085076,9.999e-05,2]
[328334826,1717180317678,155.01085076,9.999e-05,2]
[328334827,1717180349228,155.02015262,9.999e-05,2]
[328334828,1717180400592,4950.0,0.00030962,120]
[328334891,1717180591353,1966.09419997,0.00030964,33]
[328334918,1717180643512,371.96487364,9.999e-05,2]
[328334927,1717180855241,187.10514674,9.999e-05,2]
[328334928,1717180923687,155.0310062,9.999e-05,2]
[328334929,1717180946791,155.0310062,9.999e-05,2]
[328334930,1717180968301,155.0310062,9.999e-05,2]
[328335063,1717181438461,-187.10514674,0.00016554,2]
[328335065,1717181438472,-388.4498576,0.00016555,2]
[328335067,1717181438481,-250.0,0.00016671,2]
[328335069,1717181438491,-1709.8607377,0.00016684,2]
[328335071,1717181438500,-980.018861,0.00016772,2]
[328335073,1717181438509,-1761.41976067,0.000176,2]
[328335076,1717181438521,-210.68787872,0.000176,2]
[328335078,1717181438531,-1750.66114732,0.00017898,2]
[328335402,1717181442338,-8720.70948159,0.00017898,2]
[328335404,1717181442348,-741.87007672,0.00018273,2]
[328335406,1717181442357,-155.18817097,0.0001837,2]
[328335408,1717181442366,-304.20385166,0.0001837,2]
[328335410,1717181442375,-155.38112912,0.0001837,2]
[328335412,1717181442384,-155.5187816,0.00018371,2]
[328335414,1717181442393,-30521.30220672,0.00018372,2]
[328335601,1717181444084,-1659.8945614,0.00018372,2]
[328335604,1717181444096,-304.132991,0.00018372,2]
[328335679,1717181465570,1138.28233504,0.0001,2]
[328335680,1717181488862,2091.76875712,0.0001,2]
[328335681,1717181504862,155.0,9.999e-05,2]
[328335682,1717181578915,533504.76337719,0.00030958,33]
[328335709,1717182187943,154.98450155,9.999e-05,2]
[328335765,1717182632776,-306.0,0.00015,2]
[328335780,1717182638879,-792.98243404,0.00015,2]
[328335782,1717182638888,-164.35628302,0.00015719,2]
[328335783,1717182638898,-650.91084944,0.0001582,2]
[328335786,1717182638913,-2349.08915056,0.0001582,2]
[328335788,1717182638923,-1178.9190731,0.00015958,2]
[328335790,1717182638934,-332.6361249,0.00015958,2]
[328335792,1717182638944,-155.33502581,0.00016606,2]
[328335794,1717182638954,-412.15255483,0.00016608,2]
[328335796,1717182638965,-24477.84744517,0.00016608,2]
[328335798,1717182638975,-807.8507443,0.00016905,2]
[328335800,1717182638986,-23315.1398496,0.00017005,2]
[328335802,1717182638995,-1127.9176166,0.00017159,2]
[328335804,1717182639005,-250.0,0.00017211,2]
[328335806,1717182639014,-4229.78307947,0.00018233,2]
[328335808,1717182639023,-186.85917755,0.00018371,2]
[328335810,1717182639033,-8439.21593397,0.00018372,2]
[328335812,1717182639043,-977.36743668,0.00018372,2]
[328335814,1717182639053,-605.6006438,0.000185,2]
[328335816,1717182639063,-164.793736,0.00019178,2]
[328335818,1717182639073,-807.85074428,0.00019476,2]
[328335820,1717182639084,-455.112947,0.000215,2]
[328335823,1717182639094,-166.666666,0.00021918,2]
[328335825,1717182639103,-278.0,0.00022,2]
[328335827,1717182639113,-807.85074428,0.00022046,2]
[328335829,1717182639123,-278.0,0.00022192,2]
[328335831,1717182639133,-166.666666,0.00022431,2]
[328335833,1717182639144,-166.666666,0.00022944,2]
[328335835,1717182639153,-278.0,0.00023014,2]
[328335837,1717182639164,-211.84780658,0.00023273,2]
[328335839,1717182639173,-166.666666,0.00023456,2]
[328335841,1717182639182,-151.0,0.00023918,5]
[328335842,1717182639192,-1511.555198,0.00023937,2]
[328335843,1717182639202,-166.666666,0.00023969,2]
[328335844,1717182639211,-200.0,0.0002411,2]
[328335845,1717182639221,-151.0,0.00024134,5]
[328335846,1717182639230,-278.0,0.00024164,2]
[328335847,1717182639240,-475.07465496,0.00024205,2]
[328335848,1717182639249,-151.0,0.00024351,5]
[328335849,1717182639259,-1705.06239567,0.00024398,2]
[328335850,1717182639268,-761.75049726,0.000244,2]
[328335851,1717182639278,-166.666666,0.00024482,2]
[328335852,1717182639287,-293.06,0.00024486,3]
[328335853,1717182639297,-879.18,0.00024487,3]
[328335854,1717182639306,-275.6197221,0.00024495,2]
[328335855,1717182639316,-500.0,0.00024495,2]
[328335856,1717182639326,-500.0,0.00024495,2]
[328335857,1717182639336,-317.91131972,0.00024495,2]
[328335858,1717182639346,-500.0,0.00024495,2]
[328335859,1717182639355,-466.7239374,0.00024495,2]
[328335860,1717182639364,-500.0,0.00024495,2]
[328335861,1717182639374,-403.0921915,0.00024495,2]
[328335862,1717182639383,-500.0,0.00024495,2]
[328335863,1717182639392,-500.0,0.00024495,2]
[328335864,1717182639402,-500.0,0.00024495,2]
[328335865,1717182639412,-500.0,0.00024495,2]
[328335866,1717182639421,-500.0,0.00024495,2]
[328335867,1717182639431,-500.0,0.00024495,2]
[328335868,1717182639440,-631.19781139,0.00024495,2]
[328335869,1717182639450,-500.0,0.00024495,2]
[328335870,1717182639459,-500.0,0.00024495,2]
[328335871,1717182639468,-500.0,0.00024495,2]
[328335872,1717182639478,-604.543103,0.00024495,2]
[328335873,1717182639488,-500.0,0.00024495,2]
[328335874,1717182639497,-500.0,0.00024495,2]
[328335875,1717182639507,-500.0,0.00024495,2]
[328335876,1717182639612,-500.0,0.00024495,2]
[328335877,1717182639623,-500.0,0.00024495,2]
[328335878,1717182639632,-500.0,0.00024495,2]
[328335879,1717182639643,-500.0,0.00024495,2]
[328335880,1717182639653,-500.0,0.00024495,2]
[328335881,1717182639664,-500.0,0.00024495,2]
[328335882,1717182639673,-500.0,0.00024495,2]
[328335883,1717182639683,-500.0,0.00024495,2]
[328335884,1717182639693,-500.0,0.00024495,2]
[328335885,1717182639702,-194.0753606,0.00024496,2]
[328335886,1717182639712,-1352.47027716,0.00024496,2]
[328335887,1717182639721,-2494.40275771,0.00024496,2]
[328335888,1717182639732,-155.13929102,0.00024496,2]
[328335889,1717182639741,-2807.66699004,0.00024497,2]
[328335890,1717182640000,-4495.38484481,0.00024497,2]
[328335891,1717182640010,-4655.953255,0.00024498,2]
[328335892,1717182640020,-516.3033437,0.00024498,2]
[328335893,1717182640029,-309.6903097,0.00024498,2]
[328335894,1717182640038,-235.67140945,0.00024498,2]
[328335895,1717182640048,-302.58444821,0.00024498,2]
[328335896,1717182640057,-309.65937468,0.00024498,2]
[328335897,1717182640067,-470.97606821,0.00024498,2]
[328335898,1717182640076,-155.0309381,0.00024498,2]
[328335899,1717182640086,-455.55424612,0.00024498,2]
[328335900,1717182640096,-810.30906139,0.00024498,2]
[328335901,1717182640106,-891.18964198,0.00024498,2]
[328335902,1717182640115,-224.241749,0.00024498,2]
[328335903,1717182640125,-224.241749,0.00024498,2]
[328335904,1717182640134,-103.96193802,0.00024498,2]
[328335905,1717182640146,-96.29106998,0.00024498,2]
[328335906,1717182640155,-200.253008,0.00024498,2]
[328335907,1717182640165,-81.56280832,0.00024498,2]
[328335908,1717182640176,-69.43719168,0.00024498,2]
[328335909,1717182640185,-151.0,0.00024498,2]
[328335910,1717182640195,-151.0,0.00024498,2]
[328335911,1717182640204,-151.0,0.00024498,2]
[328335912,1717182640214,-667.650215,0.00024498,2]
[328335913,1717182640223,-667.650215,0.00024498,2]
[328335914,1717182640233,-151.0,0.00024498,2]
[328335915,1717182640242,-152.228194,0.00024498,2]
[328335916,1717182640252,-225.073837,0.00024498,2]
[328335917,1717182640261,-225.073837,0.00024498,2]
[328335918,1717182640271,-151.0,0.00024498,2]
[328335919,1717182640281,-151.0,0.00024498,2]
[328335920,1717182640291,-327.548759,0.00024498,2]
[328335921,1717182640300,-327.548759,0.00024498,2]
[328335922,1717182640310,-151.0,0.00024498,2]
[328335923,1717182640320,-146.68899232,0.00024498,2]
[328335948,1717182644855,-362.61492568,0.00024498,2]
[328335949,1717182644865,-509.303918,0.00024498,2]
[328335950,1717182644874,-244.863943,0.00024498,2]
[328335951,1717182644883,-423.022789,0.00024498,2]
[328335952,1717182644893,-244.863943,0.00024498,2]
[328335953,1717182644903,-423.022789,0.00024498,2]
[328335954,1717182644917,-115.63148876,0.00024498,2]
[328335955,1717182644929,-2572.39247524,0.00024498,2]
[328335956,1717182644939,-2688.023964,0.00024498,2]
[328335957,1717182644949,-1701.534865,0.00024498,2]
[328335958,1717182644959,-1701.534865,0.00024498,2]
[328335959,1717182644968,-151.0,0.00024498,2]
[328335960,1717182644978,-460.593262,0.00024498,2]
[328335961,1717182644990,-460.593262,0.00024498,2]
[328335962,1717182645000,-13464.39966495,0.00024499,2]
[328335963,1717182645010,-200.253008,0.00024499,2]
[328335964,1717182645019,-200.253008,0.00024499,2]
[328335965,1717182645028,-151.0,0.00024499,2]
[328335966,1717182645037,-667.650215,0.00024499,2]
[328335967,1717182645047,-667.650215,0.00024499,2]
[328335968,1717182645057,-225.073837,0.00024499,2]
[328335969,1717182645067,-225.073837,0.00024499,2]
[328335970,1717182645077,-151.0,0.00024499,2]
[328335971,1717182645087,-151.0,0.00024499,2]
[328335972,1717182645096,-327.548759,0.00024499,2]
[328335973,1717182645106,-327.548759,0.00024499,2]
[328335974,1717182645115,-151.0,0.00024499,2]
[328335975,1717182645125,-509.303918,0.00024499,2]
[328335976,1717182645135,-509.303918,0.00024499,2]
[328335977,1717182645144,-244.863943,0.00024499,2]
[328335978,1717182645154,-244.863943,0.00024499,2]
[328335979,1717182645163,-423.022789,0.00024499,2]
[328335980,1717182645173,-423.022789,0.00024499,2]
[328335981,1717182645183,-2688.023964,0.00024499,2]
[328335982,1717182645192,-2688.023964,0.00024499,2]
[328335983,1717182645201,-1701.534865,0.00024499,2]
[328335984,1717182645210,-1701.534865,0.00024499,2]
[328335985,1717182645219,-151.0,0.00024499,2]
[328335986,1717182645229,-460.593262,0.00024499,2]
[328335987,1717182645238,-460.593262,0.00024499,2]
[328335988,1717182645247,-17463.9290358,0.000245,2]
[328335989,1717182645849,-9598.37176311,0.000245,2]
[328335990,1717182645859,-151.0,0.000245,2]
[328335991,1717182645869,-151.0,0.000245,2]
[328335992,1717182645879,-151.0,0.000245,2]
[328335993,1717182645888,-151.0,0.000245,2]
[328335994,1717182645897,-151.0,0.000245,2]
[328335995,1717182645907,-151.0,0.000245,2]
[328335996,1717182645921,-151.0,0.000245,2]
[328335997,1717182645930,-151.0,0.000245,2]
[328335998,1717182645939,-224.241749,0.000245,2]
[328335999,1717182645949,-224.241749,0.000245,2]